2CCN - Level 2 Cost Centre Name,,9CCN - Level 9 Cost Centre Name,9CCC - Level 9 Cost Centre Code,9AN - Level 9 Account Name,9AC - Level 9 Account Code,Date posted,Date of transaction,Merchant Name,Merchant City,Merchant State,Merchant Zip Code,Originating Account Name,Originating Account Number,MCC/SIC Code,MCC Description,Original Amount,Currency,Conversion Rate,Billed Amount,Debit Credit,Reference Number,Statement Cycle,Account Name
Gloucester City Council,23UE,Museum of Gloucester Catering,MU004,Hospitality & Refreshments,3104,04/12/2019,03/12/2019,ASDA SUPERSTORE,GLOUCESTER,GBR,GL1 1DS,REDACTED,556*********9934,5411,"GROCERY STORES, SUPERMARKETS",3.75,Pound Sterling (826),1.000000000,3.75,Debit,35377759338010245350586,02/01/2020,GLOUCESTER CITY COUNCIL
Gloucester City Council,23UE,Museum of Gloucester Catering,MU004,Hospitality & Refreshments,3104,11/12/2019,10/12/2019,ASDA SUPERSTORE,GLOUCESTER,GBR,GL1 1DS,REDACTED,556*********9934,5411,"GROCERY STORES, SUPERMARKETS",2.96,Pound Sterling (826),1.000000000,2.96,Debit,35377759345060252075106,02/01/2020,GLOUCESTER CITY COUNCIL
Gloucester City Council,23UE,Museum of Gloucester,MU002,General Supplies/Materials,3025,12/12/2019,10/12/2019,WWW.PRESERVATIONEQUIPM,01379647400,,IP22 4HQ,REDACTED,556*********9934,4225,"PUBLIC WAREHOUSING-FARM PROD,REFRIGERATE",104.76,Pound Sterling (826),1.000000000,104.76,Debit,55504439345174194807188,02/01/2020,GLOUCESTER CITY COUNCIL
Gloucester City Council,23UE,Museum of Gloucester Catering,MU004,Hospitality & Refreshments,3104,12/12/2019,11/12/2019,ASDA SUPERSTORE,GLOUCESTER,GBR,GL1 1DS,REDACTED,556*********9934,5411,"GROCERY STORES, SUPERMARKETS",19.6,Pound Sterling (826),1.000000000,19.6,Debit,35377759346070277895825,02/01/2020,GLOUCESTER CITY COUNCIL
Gloucester City Council,23UE,Museum of Gloucester,MU002,General Supplies/Materials,3025,13/12/2019,12/12/2019,AMZNMKTPLACE AMAZON.CO,AMAZON.CO.UK,GBR,EC2A 2FA,REDACTED,556*********9934,5999,MISCELLANEOUS AND RETAIL STORES,17.48,Pound Sterling (826),1.000000000,17.48,Debit,85389249346949592013094,02/01/2020,GLOUCESTER CITY COUNCIL
Gloucester City Council,23UE,Museum of Gloucester Catering,MU004,Hospitality & Refreshments,3104,30/12/2019,27/12/2019,TESCO STORES 6819,GLOUCESTER,GBR,GL1 1TP,REDACTED,556*********9934,5411,"GROCERY STORES, SUPERMARKETS",1.5,Pound Sterling (826),1.000000000,1.5,Debit,15377759362070078546966,02/01/2020,GLOUCESTER CITY COUNCIL
Gloucester City Council,23UE,Museum of Gloucester,MU002,General Supplies/Materials,3025,30/12/2019,29/12/2019,AMZNMktplace,amazon.co.uk,GBR,EC2A 2FA,REDACTED,556*********9934,5999,MISCELLANEOUS AND RETAIL STORES,16.87,Pound Sterling (826),1.000000000,16.87,Debit,52692019363200127508159,02/01/2020,GLOUCESTER CITY COUNCIL
Gloucester City Council,23UE,Museum of Gloucester,MU002,General Supplies/Materials,3025,31/12/2019,31/12/2019,AMZNMktplace,amazon.co.uk,GBR,EC2A 2FA,REDACTED,556*********9934,5999,MISCELLANEOUS AND RETAIL STORES,31.98,Pound Sterling (826),1.000000000,31.98,Debit,52692019365200410583073,02/01/2020,GLOUCESTER CITY COUNCIL
Gloucester City Council,23UE,Community Wellbeing,FL001,Public Transport - Staff,2402,03/12/2019,02/12/2019,Trainline,London,GBR,1445,REDACTED,556*********1418,4112,PASSENGER RAILWAYS,133.85,Pound Sterling (826),1.000000000,133.85,Debit,85130089336947788759144,02/01/2020,GLOUCESTER CITY COUNCIL
Gloucester City Council,23UE,Financial Services,FS004,Public Transport - Staff,2402,03/12/2019,02/12/2019,Trainline,London,GBR,1445,REDACTED,556*********1418,4112,PASSENGER RAILWAYS,10.75,Pound Sterling (826),1.000000000,10.75,Debit,85130089336947788691156,02/01/2020,GLOUCESTER CITY COUNCIL
Gloucester City Council,23UE,Head of Cultural and Trading,MT003,External Training Course Fees,0550,03/12/2019,02/12/2019,EB *THE THREE COUNTIES,801-413-7200,IRL,DUBLIN 8,REDACTED,556*********1418,7399,BUSINESS SERVICES NOT ELSEWHERE CLASSIFIED,31.26,Pound Sterling (826),1.000000000,31.26,Debit,15276329337000159353020,02/01/2020,GLOUCESTER CITY COUNCIL
Gloucester City Council,23UE,Head of Cultural and Trading,MT003,Public Transport - Staff,2402,05/12/2019,04/12/2019,Trainline,London,GBR,1445,REDACTED,556*********1418,4112,PASSENGER RAILWAYS,94.1,Pound Sterling (826),1.000000000,94.1,Debit,85130089338948918178609,02/01/2020,GLOUCESTER CITY COUNCIL
Gloucester City Council,23UE,Head of Cultural and Trading,MT003,Public Transport - Staff,2402,11/12/2019,10/12/2019,Trainline,London,GBR,1445,REDACTED,556*********1418,4112,PASSENGER RAILWAYS,60.4,Pound Sterling (826),1.000000000,60.4,Debit,85130089344949281471896,02/01/2020,GLOUCESTER CITY COUNCIL
Gloucester City Council,23UE,Financial Services,FS004,Public Transport - Staff,2402,11/12/2019,10/12/2019,Trainline,London,GBR,1445,REDACTED,556*********1418,4112,PASSENGER RAILWAYS,41.25,Pound Sterling (826),1.000000000,41.25,Debit,85130089344949281440784,02/01/2020,GLOUCESTER CITY COUNCIL
Gloucester City Council,23UE,Financial Services,FS004,Public Transport - Staff,2402,13/12/2019,12/12/2019,Trainline,London,GBR,1445,REDACTED,556*********1418,4112,PASSENGER RAILWAYS,33.75,Pound Sterling (826),1.000000000,33.75,Debit,85130089346949412287938,02/01/2020,GLOUCESTER CITY COUNCIL
Gloucester City Council,23UE,Financial Services,FS004,Public Transport - Staff,2402,26/12/2019,24/12/2019,Trainline,London,GBR,1445,REDACTED,556*********1418,4112,PASSENGER RAILWAYS,86.1,Pound Sterling (826),1.000000000,86.1,Debit,85130089358951039318646,02/01/2020,GLOUCESTER CITY COUNCIL
Gloucester City Council,23UE,Countryside Unit,EP003,Vehicle Repairs and Maintenance,2103,12/12/2019,11/12/2019,PAYPAL *EBAY DIGITALIS,35314369001,GBR,TW91EH,REDACTED,556*********6734,5046,"COMMERCIAL EQUIPMENT, NOT ELSEWHERE CLASSIFIED",2.35,Pound Sterling (826),1.000000000,2.35,Debit,85130089345949342972725,02/01/2020,GLOUCESTER CITY COUNCIL
Gloucester City Council,23UE,Countryside Unit,EP003,Vehicle Repairs and Maintenance,2103,12/12/2019,11/12/2019,PAYPAL *EBAY AMIE4CHAR,35314369001,GBR,TW91EH,REDACTED,556*********6734,5533,"AUTOMOTIVE PARTS, ACCESSORIES STORES",3.49,Pound Sterling (826),1.000000000,3.49,Debit,85130089345949342970935,02/01/2020,GLOUCESTER CITY COUNCIL
Gloucester City Council,23UE,Countryside Unit,EP003,Vehicle Repairs and Maintenance,2103,12/12/2019,11/12/2019,PAYPAL *EBAY BOLTONBIT,35314369001,GBR,TW91EH,REDACTED,556*********6734,5533,"AUTOMOTIVE PARTS, ACCESSORIES STORES",62.99,Pound Sterling (826),1.000000000,62.99,Debit,85130089345949347697723,02/01/2020,GLOUCESTER CITY COUNCIL
Gloucester City Council,23UE,Countryside Unit,EP003,Vehicle Repairs and Maintenance,2103,12/12/2019,11/12/2019,PAYPAL *EBAY WENJIA DE,35314369001,GBR,TW91EH,REDACTED,556*********6734,5661,SHOE STORES,6.15,Pound Sterling (826),1.000000000,6.15,Debit,85130089345949342972816,02/01/2020,GLOUCESTER CITY COUNCIL
Gloucester City Council,23UE,Countryside Unit,EP003,Operative Clothing Allowances,0502,12/12/2019,11/12/2019,PAYPAL *EBAY TOPTOOLSD,35314369001,GBR,TW91EH,REDACTED,556*********6734,5932,ANTIQUE SHOPS,8.26,Pound Sterling (826),1.000000000,8.26,Debit,85130089345949342972766,02/01/2020,GLOUCESTER CITY COUNCIL
Gloucester City Council,23UE,Countryside Unit,EP003,Vehicle Repairs and Maintenance,2103,31/12/2019,30/12/2019,PAYPAL *OFFROADROVE EB,35314369001,GBR,TW91EH,REDACTED,556*********6734,5533,"AUTOMOTIVE PARTS, ACCESSORIES STORES",20.45,Pound Sterling (826),1.000000000,20.45,Debit,85130089364951290380576,02/01/2020,GLOUCESTER CITY COUNCIL
Gloucester City Council,23UE,Gloucester Life Museum,MU005,Archiving,3402,03/12/2019,02/12/2019,JEWSON LTD,GLOUCESTER,GBR,GL2 5DX,REDACTED,556*********8997,5211,LUMBER AND BUILDING MATERIALS STORES,88.8,Pound Sterling (826),1.000000000,88.8,Debit,05272469337910013271359,02/01/2020,GLOUCESTER CITY COUNCIL
Gloucester City Council,23UE,Guildhall Events,GH002,Equipment and Furniture,3001,05/12/2019,04/12/2019,WWW.THEGLOWCOMPANY.CO.,DONCASTER,,DN11 8NE,REDACTED,556*********8997,5947,"GIFT, CARD, NOVELTY, AND SOUVENIR SHOPS",158.56,Pound Sterling (826),1.000000000,158.56,Debit,55203349339003000013256,02/01/2020,GLOUCESTER CITY COUNCIL
Gloucester City Council,23UE,Guildhall Bar and Caf�,GH005,Equipment and Furniture,3001,06/12/2019,05/12/2019,AMZNMktplace,amazon.co.uk,GBR,EC2A 2FA,REDACTED,556*********8997,5999,MISCELLANEOUS AND RETAIL STORES,69.4,Pound Sterling (826),1.000000000,69.4,Debit,52692019339200673562304,02/01/2020,GLOUCESTER CITY COUNCIL
Gloucester City Council,23UE,Guildhall Bar and Caf�,GH005,Equipment and Furniture,3001,06/12/2019,05/12/2019,AMZNMktplace,amazon.co.uk,GBR,EC2A 2FA,REDACTED,556*********8997,5999,MISCELLANEOUS AND RETAIL STORES,19.99,Pound Sterling (826),1.000000000,19.99,Debit,52692019339200705395996,02/01/2020,GLOUCESTER CITY COUNCIL
Gloucester City Council,23UE,Gloucester Life Museum,MU005,Archiving,3402,09/12/2019,06/12/2019,SAFETYSUPPL,02089036333,GBR,HA01NR,REDACTED,556*********8997,5311,DEPARTMENT STORES,31.67,Pound Sterling (826),1.000000000,31.67,Debit,85130089340948027514336,02/01/2020,GLOUCESTER CITY COUNCIL
Gloucester City Council,23UE,Museum of Gloucester,MU002,Advertising & Publicity,3404,12/12/2019,11/12/2019,FACEBK PVHXXPNKC2,fb.me/ads,IRL,2,REDACTED,556*********8997,7311,ADVERTISING SERVICES,4.26,Pound Sterling (826),1.000000000,4.26,Debit,15265679345000042220759,02/01/2020,GLOUCESTER CITY COUNCIL
Gloucester City Council,23UE,Guildhall Bar and Caf�,GH005,Catering Provisions,3103,16/12/2019,14/12/2019,SWIZZELS MATLOW LT,HIGH PEAK,,SK223HA,REDACTED,556*********8997,5441,"CANDY, NUT CONFECTIONERY STORES",16.89,Pound Sterling (826),1.000000000,16.89,Debit,85481479349196641408803,02/01/2020,GLOUCESTER CITY COUNCIL
Gloucester City Council,23UE,Gloucester Guildhall,GH001,Equipment and Furniture,3001,17/12/2019,15/12/2019,AMZNMKTPLACE AMAZON.CO,AMAZON.CO.UK,GBR,EC2A 2FA,REDACTED,556*********8997,5999,MISCELLANEOUS AND RETAIL STORES,13.74,Pound Sterling (826),1.000000000,13.74,Debit,85389249350949653182948,02/01/2020,GLOUCESTER CITY COUNCIL
Gloucester City Council,23UE,Guildhall Events,GH002,Advertising & Publicity,3404,19/12/2019,18/12/2019,MAILCHIMP *MONTHLY,MAILCHIMP.COM,GA,30308,REDACTED,556*********8997,5968,CONTINUITY/SUBSCRIPTION MERCHANTS,38.45,Pound Sterling (826),1.000000000,38.45,Debit,55425449352200420782302,02/01/2020,GLOUCESTER CITY COUNCIL
Gloucester City Council,23UE,Guildhall Events,GH002,Advertising & Publicity,3404,19/12/2019,18/12/2019,FACEBK *H29F8R2AX2,fb.me/ads,IRL,UNKNOWN,REDACTED,556*********8997,7311,ADVERTISING SERVICES,363.81,Pound Sterling (826),1.000000000,363.81,Debit,55204729352200410505871,02/01/2020,GLOUCESTER CITY COUNCIL
Gloucester City Council,23UE,Museum of Gloucester,MU002,Events,3070,23/12/2019,22/12/2019,AMZNMktplace,amazon.co.uk,GBR,EC2A 2FA,REDACTED,556*********8997,5999,MISCELLANEOUS AND RETAIL STORES,5.98,Pound Sterling (826),1.000000000,5.98,Debit,52692019356200468363205,02/01/2020,GLOUCESTER CITY COUNCIL
Gloucester City Council,23UE,Museum of Gloucester,MU002,Advertising & Publicity,3404,02/01/2020,02/01/2020,FACEBK G43HVPSLC2,fb.me/ads,IRL,2,REDACTED,556*********8997,7311,ADVERTISING SERVICES,23.28,Pound Sterling (826),1.000000000,23.28,Debit,15265670002000000030656,02/01/2020,GLOUCESTER CITY COUNCIL
Gloucester City Council,23UE,Docks Complex - Services,AM006,Hospitality & Refreshments,3104,06/12/2019,05/12/2019,SAINSBURYS 2221,GLOUCESTER,GBR,GL2 5SA,REDACTED,556*********4301,5411,"GROCERY STORES, SUPERMARKETS",27.55,Pound Sterling (826),1.000000000,27.55,Debit,25425159340030180003950,02/01/2020,GLOUCESTER CITY COUNCIL
Gloucester City Council,23UE,Docks Complex - Services,AM006,Building Repairs and Maintenance,1001,09/12/2019,05/12/2019,B & Q 1179,GLOUCESTER,,GL12SG,REDACTED,556*********4301,5200,HOME SUPPLY WAREHOUSE STORES,16,Pound Sterling (826),1.000000000,16,Debit,85481479340194116668919,02/01/2020,GLOUCESTER CITY COUNCIL
Gloucester City Council,23UE,Docks Complex - Services,AM006,Building Repairs and Maintenance,1001,12/12/2019,10/12/2019,B & Q 1179,GLOUCESTER,,GL12SG,REDACTED,556*********6128,5200,HOME SUPPLY WAREHOUSE STORES,5.05,Pound Sterling (826),1.000000000,5.05,Debit,85481479345195504406379,02/01/2020,GLOUCESTER CITY COUNCIL
Gloucester City Council,23UE,Docks Complex - Services,AM006,Building Repairs and Maintenance,1001,17/12/2019,16/12/2019,Amazon.co.uk*OK38S4SN5,AMAZON.CO.UK,LUX,L2338,REDACTED,556*********6128,5969,ALL OTHER DIRECT MARKETERS,80,Pound Sterling (826),1.000000000,80,Debit,52692019350200789918303,02/01/2020,GLOUCESTER CITY COUNCIL
Gloucester City Council,23UE,Docks Complex - Services,AM006,Building Repairs and Maintenance,1001,19/12/2019,18/12/2019,AMZNMktplace,amazon.co.uk,GBR,EC2A 2FA,REDACTED,556*********6128,5999,MISCELLANEOUS AND RETAIL STORES,24.99,Pound Sterling (826),1.000000000,24.99,Debit,52692019352200319970269,02/01/2020,GLOUCESTER CITY COUNCIL
Gloucester City Council,23UE,Council Streetcare Team,NE002,Public Transport - Staff,2402,05/12/2019,04/12/2019,Trainline,London,GBR,1445,REDACTED,556*********4234,4112,PASSENGER RAILWAYS,10.65,Pound Sterling (826),1.000000000,10.65,Debit,85130089338948918155367,02/01/2020,GLOUCESTER CITY COUNCIL
Gloucester City Council,23UE,Managing Director & Directors,MT001,Hospitality & Refreshments,3104,05/12/2019,04/12/2019,MARKS&SPENCER PLC,GLOUCESTER,GBR,GL1 1PH,REDACTED,556*********4234,5411,"GROCERY STORES, SUPERMARKETS",2.9,Pound Sterling (826),1.000000000,2.9,Debit,35377759339020260912474,02/01/2020,GLOUCESTER CITY COUNCIL
Gloucester City Council,23UE,Development Management,PL003,Public Transport - Staff,2402,06/12/2019,05/12/2019,Trainline,London,GBR,1445,REDACTED,556*********4234,4112,PASSENGER RAILWAYS,96,Pound Sterling (826),1.000000000,96,Debit,85130089339948989222434,02/01/2020,GLOUCESTER CITY COUNCIL
Gloucester City Council,23UE,Managing Director & Directors,MT001,Hospitality & Refreshments,3104,11/12/2019,10/12/2019,TESCO STORE 2581,GLOUCESTER,GBR,GL1 2SR,REDACTED,556*********4234,5411,"GROCERY STORES, SUPERMARKETS",26.25,Pound Sterling (826),1.000000000,26.25,Debit,15377759345060050738014,02/01/2020,GLOUCESTER CITY COUNCIL
Gloucester City Council,23UE,Managing Director & Directors,MT001,Hospitality & Refreshments,3104,18/12/2019,17/12/2019,SAINSBURYS SACAT 0771,GLOUCESTER,GBR,GL1 2AG,REDACTED,556*********4234,5411,"GROCERY STORES, SUPERMARKETS",31.4,Pound Sterling (826),1.000000000,31.4,Debit,25425159352010204692892,02/01/2020,GLOUCESTER CITY COUNCIL
Gloucester City Council,23UE,Development Management,PL003,Public Transport - Staff,2402,19/12/2019,18/12/2019,Trainline,London,GBR,1445,REDACTED,556*********4234,4112,PASSENGER RAILWAYS,98.6,Pound Sterling (826),1.000000000,98.6,Debit,85130089352950761617775,02/01/2020,GLOUCESTER CITY COUNCIL
Gloucester City Council,23UE,Housing Services,HS001,B&B Payments,1303,03/12/2019,02/12/2019,TRAVELODGE GB0000,THAME,,OX9 3AT,REDACTED,556*********6959,3615,TRAVELODGE,117.98,Pound Sterling (826),1.000000000,117.98,Debit,55504439336298120658646,02/01/2020,GLOUCESTER CITY COUNCIL
Gloucester City Council,23UE,Housing Services,HS001,B&B Payments,1303,03/12/2019,02/12/2019,HIE GLOUCESTER SOUTH,GLOUCESTER,GBR,GL2 2AB,REDACTED,556*********6959,3501,HOLIDAY INNS,169.97,Pound Sterling (826),1.000000000,169.97,Debit,55184229336543371721193,02/01/2020,GLOUCESTER CITY COUNCIL
Gloucester City Council,23UE,Housing Services,HS001,B&B Payments,1303,04/12/2019,03/12/2019,TRAVELODGE GB0000,THAME,,OX9 3AT,REDACTED,556*********6959,3615,TRAVELODGE,111.98,Pound Sterling (826),1.000000000,111.98,Debit,55504439337298129542444,02/01/2020,GLOUCESTER CITY COUNCIL
Gloucester City Council,23UE,Housing Services,HS001,B&B Payments,1303,04/12/2019,03/12/2019,TRAVELODGE GB0000,THAME,,OX9 3AT,REDACTED,556*********6959,3615,TRAVELODGE,53.99,Pound Sterling (826),1.000000000,53.99,Debit,55504439337298129548763,02/01/2020,GLOUCESTER CITY COUNCIL
Gloucester City Council,23UE,Housing Services,HS001,B&B Payments,1303,04/12/2019,03/12/2019,TRAVELODGE GB0000,THAME,,OX9 3AT,REDACTED,556*********6959,3615,TRAVELODGE,111.98,Pound Sterling (826),1.000000000,111.98,Debit,55504439337298129554639,02/01/2020,GLOUCESTER CITY COUNCIL
Gloucester City Council,23UE,Housing Services,HS001,B&B Payments,1303,06/12/2019,05/12/2019,TRAVELODGE GB0000,THAME,,OX9 3AT,REDACTED,556*********6959,3615,TRAVELODGE,45.99,Pound Sterling (826),1.000000000,45.99,Debit,55504439339298146587065,02/01/2020,GLOUCESTER CITY COUNCIL
Gloucester City Council,23UE,Housing Services,HS001,B&B Payments,1303,10/12/2019,09/12/2019,TRAVELODGE GB0000,THAME,,OX9 3AT,REDACTED,556*********6959,3615,TRAVELODGE,119.98,Pound Sterling (826),1.000000000,119.98,Debit,55504439343298178471828,02/01/2020,GLOUCESTER CITY COUNCIL
Gloucester City Council,23UE,Housing Services,HS001,B&B Payments,1303,10/12/2019,09/12/2019,TRAVELODGE GB0000,THAME,,OX9 3AT,REDACTED,556*********6959,3615,TRAVELODGE,59.99,Pound Sterling (826),1.000000000,59.99,Debit,55504439343298178528742,02/01/2020,GLOUCESTER CITY COUNCIL
Gloucester City Council,23UE,Housing Services,HS001,B&B Payments,1303,11/12/2019,10/12/2019,TRAVELODGE GB0000,THAME,,OX9 3AT,REDACTED,556*********6959,3615,TRAVELODGE,116.98,Pound Sterling (826),1.000000000,116.98,Debit,55504439344298187038039,02/01/2020,GLOUCESTER CITY COUNCIL
Gloucester City Council,23UE,Housing Services,HS001,B&B Payments,1303,13/12/2019,12/12/2019,TRAVELODGE GB0000,THAME,,OX9 3AT,REDACTED,556*********6959,3615,TRAVELODGE,110.99,Pound Sterling (826),1.000000000,110.99,Debit,55504439346298103172902,02/01/2020,GLOUCESTER CITY COUNCIL
Gloucester City Council,23UE,Housing Services,HS001,B&B Payments,1303,16/12/2019,11/12/2019,TRAVELODGE GB0809,GLOUCESTER,,GL1 5SF,REDACTED,556*********6959,3615,TRAVELODGE,171.98,Pound Sterling (826),1.000000000,171.98,Debit,55504439347110240075121,02/01/2020,GLOUCESTER CITY COUNCIL
Gloucester City Council,23UE,Housing Services,HS001,B&B Payments,1303,19/12/2019,18/12/2019,HIE GLOUCESTER SOUTH,GLOUCESTER,GBR,GL2 2AB,REDACTED,556*********6959,3501,HOLIDAY INNS,337.94,Pound Sterling (826),1.000000000,337.94,Debit,55184229352543534216379,02/01/2020,GLOUCESTER CITY COUNCIL
Gloucester City Council,23UE,Guildhall Events,GH002,Supplies For Resale,3020,03/12/2019,02/12/2019,INCAJEWELLERYLTD,0441509501000,GBR,LE129NH,REDACTED,556*********8256,5944,"JEWELRY STORES-WATCHES, CLOCKS, AND SIL",403.76,Pound Sterling (826),1.000000000,403.76,Debit,85130089336947765242478,02/01/2020,GLOUCESTER CITY COUNCIL
Gloucester City Council,23UE,Guildhall Events,GH002,Advertising & Publicity,3404,03/12/2019,02/12/2019,WWW.INSTANTPRINT.C,01709 382202,,S63 5DR,REDACTED,556*********8256,7338,QUICK-COPY AND REPRODUCTION SERVICES,27.99,Pound Sterling (826),1.000000000,27.99,Debit,85481479337193241809500,02/01/2020,GLOUCESTER CITY COUNCIL
Gloucester City Council,23UE,Guildhall Events,GH002,Supplies For Resale,3020,04/12/2019,03/12/2019,PAYPAL *EBAY AVANTGARD,35314369001,GBR,TW91EH,REDACTED,556*********8256,5732,ELECTRONIC SALES,28.25,Pound Sterling (826),1.000000000,28.25,Debit,85130089337948859460793,02/01/2020,GLOUCESTER CITY COUNCIL
Gloucester City Council,23UE,Gloucester Guildhall,GH001,Equipment and Furniture,3001,04/12/2019,03/12/2019,AMZNMKTPLACE AMAZON.CO,AMAZON.CO.UK,GBR,EC2A 2FA,REDACTED,556*********8256,5999,MISCELLANEOUS AND RETAIL STORES,16.98,Pound Sterling (826),1.000000000,16.98,Debit,85389249337948441474953,02/01/2020,GLOUCESTER CITY COUNCIL
Gloucester City Council,23UE,Guildhall Events,GH002,Equipment and Furniture,3001,04/12/2019,03/12/2019,AMZNMktplace,amazon.co.uk,GBR,EC2A 2FA,REDACTED,556*********8256,5999,MISCELLANEOUS AND RETAIL STORES,26.27,Pound Sterling (826),1.000000000,26.27,Debit,52692019337200286563329,02/01/2020,GLOUCESTER CITY COUNCIL
Gloucester City Council,23UE,Guildhall Events,GH002,Partnership & Shared Working Arrangement,3902,04/12/2019,03/12/2019,WWW.INSTANTPRINT.C,01709 382202,,S63 5DR,REDACTED,556*********8256,7338,QUICK-COPY AND REPRODUCTION SERVICES,205,Pound Sterling (826),1.000000000,205,Debit,85481479338193491750668,02/01/2020,GLOUCESTER CITY COUNCIL
Gloucester City Council,23UE,Guildhall Events,GH002,Equipment and Furniture,3001,05/12/2019,04/12/2019,AMZNMktplace,amazon.co.uk,GBR,EC2A 2FA,REDACTED,556*********8256,5999,MISCELLANEOUS AND RETAIL STORES,5.5,Pound Sterling (826),1.000000000,5.5,Debit,52692019338200380582869,02/01/2020,GLOUCESTER CITY COUNCIL
Gloucester City Council,23UE,Guildhall Events,GH002,Equipment and Furniture,3001,05/12/2019,03/12/2019,AMZNMKTPLACE AMAZON.CO,AMAZON.CO.UK,GBR,EC2A 2FA,REDACTED,556*********8256,5999,MISCELLANEOUS AND RETAIL STORES,12.99,Pound Sterling (826),1.000000000,12.99,Debit,85389249338948451315731,02/01/2020,GLOUCESTER CITY COUNCIL
Gloucester City Council,23UE,Blackfriars ,GH010,Catering Provisions,3103,06/12/2019,05/12/2019,SAINSBURYS 0771,GLOUCESTER,GBR,GL1 2AG,REDACTED,556*********8256,5411,"GROCERY STORES, SUPERMARKETS",36,Pound Sterling (826),1.000000000,36,Debit,25425159340030179258110,02/01/2020,GLOUCESTER CITY COUNCIL
Gloucester City Council,23UE,Guildhall Bar and Caf�,GH005,Catering Provisions,3103,09/12/2019,06/12/2019,SAINSBURYS 0771,GLOUCESTER,GBR,GL1 2AG,REDACTED,556*********8256,5411,"GROCERY STORES, SUPERMARKETS",11.9,Pound Sterling (826),1.000000000,11.9,Debit,25425159341040195335973,02/01/2020,GLOUCESTER CITY COUNCIL
Gloucester City Council,23UE,Guildhall Bar and Caf�,GH005,Catering Provisions,3103,09/12/2019,06/12/2019,ONE BELOW,03300 581006,,S75 3FG,REDACTED,556*********8256,5411,"GROCERY STORES, SUPERMARKETS",2,Pound Sterling (826),1.000000000,2,Debit,85481479341194344800200,02/01/2020,GLOUCESTER CITY COUNCIL
Gloucester City Council,23UE,Guildhall Bar and Caf�,GH005,Equipment and Furniture,3001,09/12/2019,07/12/2019,AMZNMKTPLACE AMAZON.CO,AMAZON.CO.UK,GBR,EC2A 2FA,REDACTED,556*********8256,5999,MISCELLANEOUS AND RETAIL STORES,7.95,Pound Sterling (826),1.000000000,7.95,Debit,85389249342948514191388,02/01/2020,GLOUCESTER CITY COUNCIL
Gloucester City Council,23UE,Gloucester Guildhall,GH001,Equipment and Furniture,3001,09/12/2019,08/12/2019,AMZNMktplace,amazon.co.uk,GBR,EC2A 2FA,REDACTED,556*********8256,5999,MISCELLANEOUS AND RETAIL STORES,61.23,Pound Sterling (826),1.000000000,61.23,Debit,52692019342200600001462,02/01/2020,GLOUCESTER CITY COUNCIL
Gloucester City Council,23UE,Events,GH008,Grant Payments,3901,12/12/2019,11/12/2019,SP * CUPSDIRECT UK,COLCHESTER,LND,CO6 3AJ,REDACTED,556*********8256,5499,"MISC FOOD STORES-SPECIALITY,CONVENIENCE,MARKETS,VENDING MACHINES",55.08,Pound Sterling (826),1.000000000,55.08,Debit,85383909345000003927799,02/01/2020,GLOUCESTER CITY COUNCIL
Gloucester City Council,23UE,Guildhall Lettings,GH006,Printing External,3203,16/12/2019,13/12/2019,WWW.INSTANTPRINT.C,01709 382202,,S63 5DR,REDACTED,556*********8256,7338,QUICK-COPY AND REPRODUCTION SERVICES,7.99,Pound Sterling (826),1.000000000,7.99,Debit,85481479348196312118955,02/01/2020,GLOUCESTER CITY COUNCIL
Gloucester City Council,23UE,Gloucester Guildhall,GH001,Public Transport - Staff,2402,19/12/2019,18/12/2019,PAYPAL *TRAINLINE,35314369001,GBR,EC1N2TD,REDACTED,556*********8256,4789,TRANSPORTATION SERVICES NOT ELSEWHERE CLASSIFIED,36,Pound Sterling (826),1.000000000,36,Debit,85130089352950742976001,02/01/2020,GLOUCESTER CITY COUNCIL
Gloucester City Council,23UE,Economic Development,ED001,Advertising & Publicity,3404,06/12/2019,05/12/2019,WWW.BANNERWAREHOUSE.CO,INTERNET,GBR,SO31 9FF,REDACTED,556*********3063,2741,MISCELLANEOUS PUBLISHING & PRINTING,28.49,Pound Sterling (826),1.000000000,28.49,Debit,05272469340910011217862,02/01/2020,GLOUCESTER CITY COUNCIL
Gloucester City Council,23UE,Civica Admin Charges,BI002,Professional Advice/Consultants Fees,3952,20/12/2019,19/12/2019,HMCOURTS-SERVICE.G,01452420100,,GL12ZG,REDACTED,556*********3063,9222,FINES,426,Pound Sterling (826),1.000000000,426,Debit,85481479354197993040543,02/01/2020,GLOUCESTER CITY COUNCIL
Gloucester City Council,23UE,Civica Admin Charges,BI002,General Supplies/Materials,3025,24/12/2019,23/12/2019,PAYPAL *DAYCOUNTERS,35314369001,GBR,TW91EH,REDACTED,556*********3063,5943,"STATIONERY, OFFICE AND SCHOOL SUPPLY STO",20,Pound Sterling (826),1.000000000,20,Debit,85130089357950971386224,02/01/2020,GLOUCESTER CITY COUNCIL
Gloucester City Council,23UE,Community Wellbeing,FL001,Fuel - Vehicles/Plant,2102,24/12/2019,23/12/2019,TESCO PFS 5259,GLOUCESTER,GBR,GL4 6QS,REDACTED,556*********3063,5541,SERVICE STATIONS,46.18,Pound Sterling (826),1.000000000,46.18,Debit,65377759358050607769132,02/01/2020,GLOUCESTER CITY COUNCIL
Gloucester City Council,23UE,Gloucester Life Museum,MU005,Archiving,3402,24/12/2019,23/12/2019,AMZNMktplace,amazon.co.uk,GBR,EC2A 2FA,REDACTED,556*********3063,5999,MISCELLANEOUS AND RETAIL STORES,59.35,Pound Sterling (826),1.000000000,59.35,Debit,52692019357200828760487,02/01/2020,GLOUCESTER CITY COUNCIL
Gloucester City Council,23UE,Financial Services,FS004,General Supplies/Materials,3025,27/12/2019,26/12/2019,AMZNMktplace,amazon.co.uk,GBR,EC2A 2FA,REDACTED,556*********3063,5999,MISCELLANEOUS AND RETAIL STORES,35.99,Pound Sterling (826),1.000000000,35.99,Debit,52692019360200414104772,02/01/2020,GLOUCESTER CITY COUNCIL
